fUSD/lending_fUSD_20260627
["ID","MTS","AMOUNT","RATE_DAILY","PERIOD"]
[426538779,1782568240000,-295.09679583,0.00025887,2]
[426538780,1782568240000,-296.35028037,0.00025887,2]
[426538781,1782568240000,-273.51315321,0.00025912,2]
[426538784,1782568240000,-500.61461372,0.00026,2]
[426538785,1782568240000,-237.18007815,0.00026069,2]
[426538794,1782568240000,-731.45423428,0.00026448,2]
[426538789,1782568240000,-500.61461372,0.00026444,2]
[426538791,1782568240000,-743.56578186,0.00026448,2]
[426538795,1782568240000,-711.56108052,0.00026448,2]
[426538790,1782568240000,-544.67310876,0.00026448,2]
[426538788,1782568240000,-292.96812722,0.00026386,2]
[426538792,1782568240000,-761.66170674,0.00026448,2]
[426538796,1782568240000,-590.19359166,0.00026448,2]
[426538787,1782568240000,-419.62,0.00026331,7]
[426538793,1782568240000,-689.54026672,0.00026448,2]
[426538798,1782568240000,-152.81969986,0.00026474,2]
[426538797,1782568240000,-592.70056075,0.00026448,2]
[426538800,1782568240000,-471.76487808,0.00026474,2]
[426538805,1782568240000,-644.5,0.0002664,2]
[426538802,1782568240000,-586.69,0.000265,7]
[426538804,1782568240000,-248.7,0.0002664,2]
[426538799,1782568240000,-547.02630643,0.00026474,2]
[426538803,1782568240000,-1208.03,0.000265,7]
[426538801,1782568240000,-542.05568706,0.00026474,2]
[426538808,1782568240000,-644.5,0.0002664,2]
[426538806,1782568240000,-185.22,0.0002664,2]
[426538807,1782568240000,-248.7,0.0002664,2]
[426538744,1782568240000,-325.73748176,0.00025186,2]
[426538776,1782568240000,-517.15520004,0.00025887,2]
[426538782,1782568240000,-314.50991872,0.00025912,2]
[426538786,1782568240000,-500.61461372,0.00026222,2]
[426538775,1782568240000,-571.24628006,0.00025887,2]
[426538749,1782568240000,-267168.20984756,0.000258,2]
[426538747,1782568240000,-605.42,0.0002575,7]
[426538750,1782568240000,-1995.5152157,0.00025806,2]
[426538754,1782568240000,-644.5,0.00025817,2]
[426538753,1782568240000,-185.26,0.00025817,2]
[426538746,1782568240000,-182.11,0.00025675,7]
[426538774,1782568240000,-557.67433639,0.00025887,2]
[426538757,1782568240000,-482.38,0.00025817,2]
[426538755,1782568240000,-185.25,0.00025817,2]
[426538752,1782568240000,-295.22,0.00025817,2]
[426538756,1782568240000,-647.51,0.00025817,2]
[426538759,1782568240000,-185.25,0.00025817,2]
[426538758,1782568240000,-642.83,0.00025817,2]
[426538765,1782568240000,-644.26,0.00025818,2]
[426538768,1782568240000,-248.7,0.00025836,2]
[426538751,1782568240000,-28539.3477404,0.00025806,2]
[426538767,1782568240000,-482.55,0.00025818,2]
[426538777,1782568240000,-548.59067571,0.00025887,2]
[426538762,1782568240000,-185.28,0.00025818,2]
[426538772,1782568240000,-573.78,0.00025836,2]
[426538783,1782568240000,-271.02784353,0.00025912,2]
[426538771,1782568240000,-482.55,0.00025836,2]
[426538769,1782568240000,-185.26,0.00025836,2]
[426538773,1782568240000,-272.33655438,0.00025887,2]
[426538770,1782568240000,-482.37,0.00025836,2]
[426538761,1782568240000,-248.7,0.00025818,2]
[426538763,1782568240000,-644.97,0.00025818,2]
[426538766,1782568240000,-248.7,0.00025818,2]
[426538764,1782568240000,-390.03,0.00025818,2]
[426538760,1782568240000,-185.25,0.00025817,2]
[426538818,1782568241000,-240.72,0.00026641,2]
[426538822,1782568241000,-2868.59911662,0.000268,2]
[426538823,1782568241000,-2788.19797476,0.000268,2]
[426538821,1782568241000,-96971.2,0.000268,2]
[426538820,1782568241000,-2551265.62065784,0.000268,2]
[426538819,1782568241000,-500.61461372,0.00026667,2]
[426538824,1782568241000,-1406.49410988,0.000268,2]
[426538816,1782568241000,-644.5,0.00026641,2]
[426538811,1782568241000,-644.68,0.00026641,2]
[426538817,1782568241000,-248.7,0.00026641,2]
[426538814,1782568241000,-248.72,0.00026641,2]
[426538813,1782568241000,-248.7,0.00026641,2]
[426538812,1782568241000,-185.25,0.00026641,2]
[426538810,1782568241000,-644.5,0.00026641,2]
[426538809,1782568241000,-573.57,0.0002664,2]
[426538828,1782568241000,-442.73,0.00027137,7]
[426538815,1782568241000,-644.5,0.00026641,2]
[426538825,1782568241000,-1653.19807732,0.000268,2]
[426538838,1782568241000,-138.95706051,0.00027397,2]
[426538829,1782568241000,-500.61461372,0.00027333,2]
[426538844,1782568241000,-349.154155,0.00027397,2]
[426538845,1782568241000,-81.18293456,0.00027397,2]
[426538842,1782568241000,-349.154155,0.00027397,2]
[426538843,1782568241000,-349.154155,0.00027397,2]
[426538839,1782568241000,-161.17540923,0.00027397,2]
[426538826,1782568241000,-500.61461372,0.00026889,2]
[426538834,1782568241000,-80.97015051,0.00027397,2]
[426538841,1782568241000,-349.154155,0.00027397,2]
[426538840,1782568241000,-187.97874577,0.00027397,2]
[426538837,1782568241000,-210.19709449,0.00027397,2]
[426538835,1782568241000,-349.154155,0.00027397,2]
[426538832,1782568241000,-349.154155,0.00027397,2]
[426538833,1782568241000,-268.18400449,0.00027397,2]
[426538831,1782568241000,-313.86049208,0.00027397,2]
[426538830,1782568241000,-35.29366292,0.00027397,2]
[426538827,1782568241000,-500.61461372,0.00027111,2]
[426538836,1782568241000,-349.154155,0.00027397,2]
[426538855,1782568243000,-243.5112392,0.00027397,2]
[426538854,1782568243000,-349.154155,0.00027397,2]
[426538853,1782568243000,-267.97122044,0.00027397,2]
[426538856,1782568244000,-105.6429158,0.00027397,2]
[426538858,1782568244000,-349.154155,0.00027397,2]
[426538860,1782568244000,-349.154155,0.00027397,2]
[426538857,1782568244000,-349.154155,0.00027397,2]
[426538861,1782568244000,-349.154155,0.00027397,2]
[426538863,1782568244000,-5927.3,0.00027397,10]
[426538862,1782568244000,-349.154164,0.00027397,2]
[426538864,1782568244000,-3140.41554452,0.00027397,10]
[426538859,1782568244000,-349.154155,0.00027397,2]
[426538884,1782568246000,-289.53510931,0.00027397,10]
[426538883,1782568246000,-1509.45934617,0.00027397,10]
[426538885,1782568246000,-815.73462652,0.00027397,10]
[426538886,1782568246000,-611.02436963,0.00027397,10]
[426538887,1782568246000,-560.89704656,0.00027397,10]
[426538890,1782568246000,-202.43441397,0.00027397,2]
[426538891,1782568246000,-404.86882795,0.00027397,2]
[426538889,1782568246000,-1722.67024259,0.00027397,10]
[426538888,1782568246000,-405.8537147,0.00027397,10]
[426538897,1782568247000,-248.7,0.00027463,2]
[426538903,1782568247000,-482.55,0.00027463,2]
[426538902,1782568247000,-248.7,0.00027463,2]
[426538909,1782568247000,-333.35,0.00027463,2]
[426538908,1782568247000,-482.55,0.00027463,2]
[426538901,1782568247000,-573.78,0.00027463,2]
[426538895,1782568247000,-424.95077536,0.00027397,2]
[426538899,1782568247000,-644.5,0.00027463,2]
[426538898,1782568247000,-248.7,0.00027463,2]
[426538893,1782568247000,-809.73765589,0.00027397,2]
[426538894,1782568247000,-212.47538768,0.00027397,2]
[426538896,1782568247000,-296.64765871,0.00027397,2]
[426538892,1782568247000,-607.30324192,0.00027397,2]
[426538900,1782568247000,-574.07,0.00027463,2]
[426538904,1782568247000,-211.97165205,0.00027463,2]
[426538907,1782568247000,-302.06834513,0.00027463,2]
[426538905,1782568247000,-36.72834795,0.00027463,2]
[426538919,1782568247000,-248.7,0.00027463,2]
[426538918,1782568247000,-452.36540533,0.00027463,2]
[426538916,1782568247000,-30.18459467,0.00027463,2]
[426538920,1782568247000,-644.5,0.00027463,2]
[426538923,1782568247000,-296.27986303,0.00027463,2]
[426538914,1782568247000,-185.25,0.00027463,2]
[426538906,1782568247000,-271.71165487,0.00027463,2]
[426538915,1782568247000,-575.28,0.00027463,2]
[426538910,1782568247000,-248.7,0.00027463,2]
[426538911,1782568247000,-44.38717005,0.00027463,2]
[426538913,1782568247000,-651.89,0.00027463,2]
[426538922,1782568247000,-482.55,0.00027463,2]
[426538921,1782568247000,-573.78,0.00027463,2]
[426538912,1782568247000,-204.31282995,0.00027463,2]
[426538927,1782568348000,275.06,0.0003741,120]
[426538947,1782568457000,-308.17,0.00011706,2]
[426538943,1782568457000,-151.0,0.00011544,2]
[426538945,1782568457000,-150.0,0.00011544,2]
[426538944,1782568457000,-151.0,0.00011544,2]
[426538942,1782568457000,-308.17,0.00011532,2]
[426538941,1782568457000,-308.17,0.00011382,2]
[426538939,1782568457000,-308.17,0.00011152,2]
[426538938,1782568457000,-216.51184279,0.00011108,2]
[426538949,1782568457000,-250.0,0.00012063,2]
[426538937,1782568457000,-160.0,0.00011071,2]
[426538936,1782568457000,-308.17,0.00011071,2]
[426538935,1782568457000,-308.17,0.00011013,2]
[426538934,1782568457000,-308.17,0.00010978,2]
[426538933,1782568457000,-250.0,0.00010973,2]
[426538932,1782568457000,-308.17,0.00010967,2]
[426538940,1782568457000,-308.17,0.00011255,2]
[426538948,1782568457000,-308.17,0.00011902,2]
[426538946,1782568457000,-150.0,0.00011544,2]
[426538951,1782568457000,-150.0,0.00013697,2]
[426538967,1782568457000,-500.0,0.00013698,2]
[426538965,1782568457000,-500.0,0.00013698,2]
[426538966,1782568457000,-524.51883323,0.00013698,2]
[426538964,1782568457000,-500.0,0.00013698,2]
[426538950,1782568457000,-308.17,0.00012121,2]
[426538963,1782568457000,-500.0,0.00013698,2]
[426538960,1782568457000,-500.0,0.00013698,2]
[426538961,1782568457000,-500.0,0.00013698,2]
[426538962,1782568457000,-500.0,0.00013698,2]
[426538958,1782568457000,-500.0,0.00013698,2]
[426538957,1782568457000,-500.0,0.00013698,2]
[426538955,1782568457000,-500.0,0.00013698,2]
[426538956,1782568457000,-500.0,0.00013698,2]
[426538954,1782568457000,-500.0,0.00013698,2]
[426538952,1782568457000,-500.0,0.00013698,2]
[426538953,1782568457000,-500.0,0.00013698,2]
[426538959,1782568457000,-231.84853459,0.00013698,2]
[426538977,1782568458000,-500.0,0.00014899,2]
[426538973,1782568458000,-151.0,0.0001421,2]
[426538975,1782568458000,-151.0,0.0001421,2]
[426538974,1782568458000,-151.0,0.0001421,2]
[426538969,1782568458000,-500.0,0.00013698,2]
[426538972,1782568458000,-151.0,0.0001421,2]
[426538970,1782568458000,-500.0,0.00013698,2]
[426538976,1782568458000,-255.0,0.0001482,2]
[426538971,1782568458000,-500.0,0.00013698,2]
[426538978,1782568458000,-614.01978109,0.0001493,2]
[426538968,1782568458000,-500.0,0.00013698,2]
[426538979,1782568458000,-500.0,0.00014999,2]
[426538980,1782568458000,-500.0,0.00014999,2]
[426538989,1782568458000,-39323.72604284,0.00015,2]
[426538986,1782568458000,-455.29496546,0.00014999,2]
[426538987,1782568458000,-300.0,0.00014999,2]
[426538988,1782568458000,-159.21,0.00015,2]
[426538985,1782568458000,-500.0,0.00014999,2]
[426538984,1782568458000,-500.0,0.00014999,2]
[426538982,1782568458000,-500.0,0.00014999,2]
[426538981,1782568458000,-500.0,0.00014999,2]
[426538983,1782568458000,-500.0,0.00014999,2]
[426538997,1782568643000,151.0,0.00037488,120]
[426538998,1782568643000,151.0,0.00037488,120]
[426539000,1782568644000,151.0,0.00037488,120]
[426538999,1782568644000,151.0,0.00037488,120]
[426539001,1782568645000,151.0,0.00037488,120]
[426539002,1782568645000,151.0,0.00037488,120]
[426539004,1782568646000,151.0,0.00037488,120]
[426539003,1782568646000,151.0,0.00037488,120]
[426539007,1782568647000,167.34438652,0.00037488,120]
[426539006,1782568647000,151.0,0.00037488,120]
[426539005,1782568647000,151.0,0.00037488,120]
[426539019,1782569047000,151.0,0.00011643,2]
[426539020,1782569050000,151.0,0.00011643,2]
[426539021,1782569054000,151.0,0.00011643,2]
[426539022,1782569057000,151.0,0.00011643,2]
[426539032,1782569270000,179.74,0.00011658,2]
[426539079,1782569434000,-166.66,0.00012275,2]
[426539081,1782569434000,-152.0,0.00012275,2]
[426539080,1782569434000,-153.0,0.00012275,2]
[426539086,1782569434000,-166.66,0.00012533,2]
[426539082,1782569434000,-150.0,0.00012276,2]
[426539083,1782569434000,-153.0,0.00012278,2]
[426539085,1782569434000,-151.0,0.00012339,2]
[426539084,1782569434000,-151.0,0.0001229,2]
[426539088,1782569434000,-2168.23,0.00012706,2]
[426539087,1782569434000,-875.56,0.00012645,2]
[426539089,1782569434000,-3033.80228002,0.00012709,2]
[426539092,1782569434000,-166.66,0.00012792,2]
[426539093,1782569434000,-153.0,0.00012886,2]
[426539090,1782569434000,-36.22771998,0.00012709,2]
[426539094,1782569434000,-91.27276205,0.00012886,2]
[426539091,1782569434000,-168.92,0.00012725,2]
[426539095,1782569434000,-59.72723795,0.00012886,2]
[426539077,1782569434000,-150.0,0.00012275,2]
[426539096,1782569434000,-151.0,0.00012886,2]
[426539078,1782569434000,-150.0,0.00012275,2]
[426539063,1782569434000,-150.0,0.00012226,2]
[426539075,1782569434000,-153.0,0.00012275,2]
[426539099,1782569434000,-413.48160874,0.00013026,2]
[426539057,1782569434000,-150.0,0.00012226,2]
[426539058,1782569434000,-151.0,0.00012226,2]
[426539059,1782569434000,-151.0,0.00012226,2]
[426539056,1782569434000,-482.36321016,0.00012226,2]
[426539060,1782569434000,-153.0,0.00012226,2]
[426539061,1782569434000,-151.0,0.00012226,2]
[426539062,1782569434000,-151.0,0.00012226,2]
[426539064,1782569434000,-150.0,0.00012226,2]
[426539066,1782569434000,-152.0,0.00012226,2]
[426539065,1782569434000,-151.0,0.00012226,2]
[426539067,1782569434000,-150.0,0.00012275,2]
[426539068,1782569434000,-152.0,0.00012275,2]
[426539069,1782569434000,-151.0,0.00012275,2]
[426539070,1782569434000,-151.0,0.00012275,2]
[426539073,1782569434000,-151.0,0.00012275,2]
[426539072,1782569434000,-151.0,0.00012275,2]
[426539074,1782569434000,-151.0,0.00012275,2]
[426539071,1782569434000,-153.0,0.00012275,2]
[426539076,1782569434000,-150.0,0.00012275,2]
[426539097,1782569434000,-373.27276205,0.00013026,2]
[426539124,1782569434000,-331.75383835,0.00013697,2]
[426539101,1782569434000,-4934.90682493,0.00013026,2]
[426539126,1782569434000,-639.01145303,0.00013697,2]
[426539128,1782569434000,-151.0,0.00013697,2]
[426539138,1782569434000,-143.76844659,0.00013697,2]
[426539127,1782569434000,-917.0,0.00013697,2]
[426539131,1782569434000,-151.0,0.00013697,2]
[426539130,1782569434000,-898.0,0.00013697,2]
[426539129,1782569434000,-897.0,0.00013697,2]
[426539132,1782569434000,-914.0,0.00013697,2]
[426539134,1782569434000,-499.98854697,0.00013697,2]
[426539133,1782569434000,-917.0,0.00013697,2]
[426539136,1782569434000,-151.0,0.00013697,2]
[426539137,1782569434000,-893.0,0.00013697,2]
[426539135,1782569434000,-408.01145303,0.00013697,2]
[426539104,1782569434000,-164.05,0.00013065,2]
[426539141,1782569434000,-150.0,0.00013697,2]
[426539142,1782569434000,-416.36287597,0.00013697,2]
[426539143,1782569434000,-152.0,0.00013697,2]
[426539144,1782569434000,-16.12414039,0.00013697,2]
[426539139,1782569434000,-641.68,0.00013697,2]
[426539125,1782569434000,-269.98854697,0.00013697,2]
[426539119,1782569434000,-150.0,0.00013686,2]
[426539140,1782569434000,-122.55155341,0.00013697,2]
[426539102,1782569434000,-151.0,0.00013026,2]
[426539098,1782569434000,-647.66880428,0.00013026,2]
[426539103,1782569434000,-166.66,0.0001305,2]
[426539106,1782569434000,-108.40011713,0.00013155,2]
[426539105,1782569434000,-151.0,0.00013155,2]
[426539109,1782569434000,-151.0,0.00013155,2]
[426539108,1782569434000,-153.0,0.00013155,2]
[426539110,1782569434000,-151.0,0.00013155,2]
[426539113,1782569434000,-166.66,0.00013308,2]
[426539111,1782569434000,-752.59,0.00013155,2]
[426539107,1782569434000,-43.59988287,0.00013155,2]
[426539114,1782569434000,-500.0,0.00013308,2]
[426539115,1782569434000,-150.0,0.00013488,2]
[426539117,1782569434000,-153.0,0.00013686,2]
[426539116,1782569434000,-166.66,0.00013567,2]
[426539121,1782569434000,-152.0,0.00013697,2]
[426539122,1782569434000,-151.0,0.00013697,2]
[426539120,1782569434000,-150.0,0.00013697,2]
[426539123,1782569434000,-568.24616165,0.00013697,2]
[426539112,1782569434000,-150.0,0.00013308,2]
[426539118,1782569434000,-150.0,0.00013686,2]
[426539169,1782569435000,-902.0,0.00013697,2]
[426539164,1782569435000,-905.0,0.00013697,2]
[426539166,1782569435000,-895.0,0.00013697,2]
[426539167,1782569435000,-904.0,0.00013697,2]
[426539168,1782569435000,-150.0,0.00013697,2]
[426539171,1782569435000,-900.0,0.00013698,2]
[426539175,1782569435000,-500.0,0.00013698,2]
[426539172,1782569435000,-887.0,0.00013698,2]
[426539173,1782569435000,-902.0,0.00013698,2]
[426539183,1782569435000,-500.0,0.00013698,2]
[426539179,1782569435000,-224.52227889,0.00013698,2]
[426539174,1782569435000,-911.0,0.00013698,2]
[426539177,1782569435000,-500.0,0.00013698,2]
[426539165,1782569435000,-898.0,0.00013697,2]
[426539170,1782569435000,-909.0,0.00013697,2]
[426539161,1782569435000,-152.0,0.00013697,2]
[426539149,1782569435000,-152.0,0.00013697,2]
[426539162,1782569435000,-152.0,0.00013697,2]
[426539157,1782569435000,-240.76887144,0.00013697,2]
[426539153,1782569435000,-240.76887144,0.00013697,2]
[426539154,1782569435000,-150.0,0.00013697,2]
[426539152,1782569435000,-152.0,0.00013697,2]
[426539159,1782569435000,-152.0,0.00013697,2]
[426539155,1782569435000,-912.0,0.00013697,2]
[426539160,1782569435000,-152.0,0.00013697,2]
[426539151,1782569435000,-39.85286954,0.00013697,2]
[426539148,1782569435000,-35.85286954,0.00013697,2]
[426539150,1782569435000,-112.14713046,0.00013697,2]
[426539145,1782569435000,-135.87585961,0.00013697,2]
[426539147,1782569435000,-116.14713046,0.00013697,2]
[426539146,1782569435000,-209.15330716,0.00013697,2]
[426539163,1782569435000,-152.0,0.00013697,2]
[426539176,1782569435000,-500.0,0.00013698,2]
[426539158,1782569435000,-152.0,0.00013697,2]
[426539182,1782569435000,-471.59582141,0.00013698,2]
[426539201,1782569435000,-500.0,0.00013826,2]
[426539203,1782569435000,-500.0,0.00013826,2]
[426539205,1782569435000,-500.0,0.00013826,2]
[426539202,1782569435000,-342.030831,0.00013826,2]
[426539204,1782569435000,-500.0,0.00013826,2]
[426539207,1782569435000,-150.0,0.00013826,2]
[426539200,1782569435000,-500.0,0.00013826,2]
[426539206,1782569435000,-500.0,0.00013826,2]
[426539208,1782569435000,-150.0,0.00013826,2]
[426539210,1782569435000,-109.40630862,0.00014,2]
[426539211,1782569435000,-140.59369138,0.00014,2]
[426539212,1782569435000,-216.51184279,0.00014084,2]
[426539213,1782569435000,-27.89739839,0.00014114,2]
[426539180,1782569435000,-275.47772111,0.00013698,2]
[426539209,1782569435000,-151.60268535,0.00013826,2]
[426539198,1782569435000,-200.0,0.00013699,2]
[426539156,1782569435000,-152.0,0.00013697,2]
[426539199,1782569435000,-1683.91,0.000137,2]
[426539197,1782569435000,-888.0,0.00013698,2]
[426539178,1782569435000,-500.0,0.00013698,2]
[426539185,1782569435000,-152.0,0.00013698,2]
[426539195,1782569435000,-915.0,0.00013698,2]
[426539184,1782569435000,-500.0,0.00013698,2]
[426539196,1782569435000,-892.0,0.00013698,2]
[426539187,1782569435000,-150.0,0.00013698,2]
[426539188,1782569435000,-150.0,0.00013698,2]
[426539191,1782569435000,-899.0,0.00013698,2]
[426539190,1782569435000,-885.0,0.00013698,2]
[426539194,1782569435000,-888.0,0.00013698,2]
[426539181,1782569435000,-28.40417859,0.00013698,2]
[426539192,1782569435000,-914.0,0.00013698,2]
[426539193,1782569435000,-905.0,0.00013698,2]
[426539189,1782569435000,-152.0,0.00013698,2]
[426539186,1782569435000,-151.0,0.00013698,2]
[426539214,1782569436000,-132.10260161,0.00014114,2]
[426539216,1782569436000,-255.0,0.00014413,2]
[426539219,1782569436000,-1004.4919913,0.000147,2]
[426539218,1782569436000,-2185.46087438,0.000147,2]
[426539217,1782569436000,-1340.4006559,0.00014542,2]
[426539215,1782569436000,-875.56,0.00014225,2]
[426539243,1782569438000,-10302.01657943,0.00014722,2]
[426539240,1782569438000,-332.0,0.00014702,2]
[426539238,1782569438000,-178.31452087,0.000147,2]
[426539232,1782569438000,-760.11851838,0.000147,2]
[426539237,1782569438000,-10302.01657948,0.000147,2]
[426539241,1782569438000,-370.0,0.00014702,2]
[426539239,1782569438000,-1175.82426029,0.000147,2]
[426539236,1782569438000,-170.42730272,0.000147,2]
[426539233,1782569438000,-2636.03979174,0.000147,2]
[426539234,1782569438000,-1483.57598021,0.000147,2]
[426539231,1782569438000,-608.0,0.000147,2]
[426539228,1782569438000,-157.0,0.00012397,2]
[426539229,1782569438000,-464.38196016,0.000147,2]
[426539244,1782569438000,-1175.82426027,0.00014729,2]
[426539242,1782569438000,-10588.22471482,0.00014722,2]
[426539230,1782569438000,-1012.29,0.000147,2]
[426539250,1782569438000,-10302.01657943,0.00014767,2]
[426539260,1782569438000,-500.0,0.00014787,2]
[426539258,1782569438000,-500.0,0.00014787,2]
[426539259,1782569438000,-500.0,0.00014787,2]
[426539261,1782569438000,-500.0,0.00014787,2]
[426539252,1782569438000,-178.04280161,0.00014787,2]
[426539245,1782569438000,-10588.22471482,0.00014744,2]
[426539248,1782569438000,-10588.22471482,0.00014767,2]
[426539254,1782569438000,-288.47858558,0.00014787,2]
[426539255,1782569438000,-500.0,0.00014787,2]
[426539257,1782569438000,-500.0,0.00014787,2]
[426539256,1782569438000,-500.0,0.00014787,2]
[426539247,1782569438000,-1175.82426027,0.00014757,2]
[426539246,1782569438000,-10302.01657943,0.00014744,2]
[426539253,1782569438000,-500.0,0.00014787,2]
[426539251,1782569438000,-1175.82426027,0.00014786,2]
[426539235,1782569438000,-433.86559867,0.000147,2]
[426539316,1782569439000,-500.0,0.00014787,2]
[426539326,1782569439000,-500.0,0.00014787,2]
[426539324,1782569439000,-500.0,0.00014787,2]
[426539321,1782569439000,-500.0,0.00014787,2]
[426539318,1782569439000,-500.0,0.00014787,2]
[426539323,1782569439000,-500.0,0.00014787,2]
[426539310,1782569439000,-500.0,0.00014787,2]
[426539312,1782569439000,-500.0,0.00014787,2]
[426539342,1782569439000,-500.0,0.00014799,2]
[426539330,1782569439000,-500.0,0.00014787,2]
[426539340,1782569439000,-10302.01657943,0.00014789,2]
[426539328,1782569439000,-500.0,0.00014787,2]
[426539347,1782569439000,-500.0,0.00014799,2]
[426539348,1782569439000,-500.0,0.00014799,2]
[426539349,1782569439000,-244.11845329,0.00014799,2]
[426539314,1782569439000,-500.0,0.00014787,2]
[426539332,1782569439000,-500.0,0.00014787,2]
[426539336,1782569439000,-500.0,0.00014787,2]
[426539338,1782569439000,-10588.22471482,0.00014789,2]
[426539269,1782569439000,-500.0,0.00014787,2]
[426539344,1782569439000,-500.0,0.00014799,2]
[426539308,1782569439000,-500.0,0.00014787,2]
[426539293,1782569439000,-500.0,0.00014787,2]
[426539304,1782569439000,-500.0,0.00014787,2]
[426539350,1782569439000,-198.03125081,0.00014799,2]
[426539275,1782569439000,-500.0,0.00014787,2]
[426539267,1782569439000,-200.831473,0.00014787,2]
[426539271,1782569439000,-500.0,0.00014787,2]
[426539265,1782569439000,-500.0,0.00014787,2]
[426539273,1782569439000,-500.0,0.00014787,2]
[426539263,1782569439000,-500.0,0.00014787,2]
[426539276,1782569439000,-500.0,0.00014787,2]
[426539262,1782569439000,-500.0,0.00014787,2]
[426539264,1782569439000,-500.0,0.00014787,2]
[426539306,1782569439000,-500.0,0.00014787,2]
[426539291,1782569439000,-500.0,0.00014787,2]
[426539296,1782569439000,-500.0,0.00014787,2]
[426539289,1782569439000,-500.0,0.00014787,2]
[426539286,1782569439000,-500.0,0.00014787,2]
[426539294,1782569439000,-500.0,0.00014787,2]
[426539280,1782569439000,-500.0,0.00014787,2]
[426539284,1782569439000,-500.0,0.00014787,2]
[426539282,1782569439000,-500.0,0.00014787,2]
[426539300,1782569439000,-500.0,0.00014787,2]
[426539298,1782569439000,-500.0,0.00014787,2]
[426539302,1782569439000,-500.0,0.00014787,2]
[426539278,1782569439000,-500.0,0.00014787,2]
[426539354,1782569439000,-220.67736801,0.00014799,2]
[426539346,1782569439000,-500.0,0.00014799,2]
[426539359,1782569439000,-4187.0215,0.000148,2]
[426539409,1782569439000,-5800.0,0.000149,2]
[426539405,1782569439000,-500.0,0.00014899,2]
[426539411,1782569439000,-10588.22471482,0.000149,2]
[426539399,1782569439000,-1175.82426027,0.00014871,2]
[426539407,1782569439000,-321.4169976,0.00014899,2]
[426539418,1782569439000,-1175.82426027,0.000149,2]
[426539420,1782569439000,-466.5960117,0.000149,2]
[426539424,1782569439000,-3737.67166039,0.000149,2]
[426539431,1782569439000,-500.0,0.00014999,2]
[426539438,1782569439000,-500.0,0.00014999,2]
[426539412,1782569439000,-170.42730272,0.000149,2]
[426539422,1782569439000,-352.76247272,0.000149,2]
[426539436,1782569439000,-500.0,0.00014999,2]
[426539443,1782569439000,-300.0,0.00014999,2]
[426539441,1782569439000,-300.0,0.00014999,2]
[426539433,1782569439000,-609.52291159,0.00014999,2]
[426539430,1782569439000,-500.0,0.00014999,2]
[426539428,1782569439000,-509.19452357,0.00014999,2]
[426539439,1782569439000,-506.99993731,0.00014999,2]
[426539446,1782569439000,-9478693.58769168,0.00015,2]
[426539448,1782569439000,-3826912.67575083,0.00015,2]
[426539352,1782569439000,-500.0,0.00014799,2]
[426539426,1782569439000,-500.0,0.00014999,2]
[426539416,1782569439000,-10302.01657943,0.000149,2]
[426539334,1782569439000,-500.0,0.00014787,2]
[426539397,1782569439000,-166.0,0.00014856,2]
[426539401,1782569439000,-10588.22471482,0.00014878,2]
[426539361,1782569439000,-26148.51184995,0.000148,2]